fUST/lending_fUST_20250905
["ID","MTS","AMOUNT","RATE_DAILY","PERIOD"]
[383579264,1757004457426,-480.0,0.00013698,2]
[383579265,1757004457448,-480.0,0.00013698,2]
[383579266,1757004457468,-480.0,0.00013698,2]
[383579267,1757004457490,-864.42,0.00013698,2]
[383579268,1757004457510,-480.0,0.00013698,2]
[383579269,1757004457530,-480.0,0.00013698,2]
[383579270,1757004457550,-480.0,0.00013698,2]
[383579271,1757004457570,-480.0,0.00013698,2]
[383579272,1757004457591,-887.72,0.00013698,2]
[383579273,1757004457612,-430.0,0.00013698,2]
[383579274,1757004457634,-480.0,0.00013698,2]
[383579275,1757004457655,-480.0,0.00013698,2]
[383579276,1757004457675,-480.0,0.00013698,2]
[383579277,1757004457696,-480.0,0.00013698,2]
[383579278,1757004457716,-488.13,0.00013698,2]
[383579279,1757004457735,-480.0,0.00013698,2]
[383579281,1757004457757,-634.2,0.00013698,2]
[383579282,1757004457778,-680.96,0.00013698,2]
[383579283,1757004457798,-480.0,0.00013698,2]
[383579284,1757004457818,-480.0,0.00013698,2]
[383579285,1757004457838,-480.0,0.00013698,2]
[383579286,1757004457858,-480.0,0.00013698,2]
[383579287,1757004457878,-480.0,0.00013698,2]
[383579288,1757004457898,-621.62,0.00013698,2]
[383579289,1757004457920,-480.0,0.00013698,2]
[383579290,1757004457941,-480.0,0.00013698,2]
[383579291,1757004457964,-480.0,0.00013698,2]
[383579292,1757004457986,-480.0,0.00013698,2]
[383579293,1757004458007,-480.0,0.00013698,2]
[383579294,1757004458035,-480.0,0.00013698,2]
[383579295,1757004458056,-480.0,0.00013698,2]
[383579296,1757004458078,-480.0,0.00013698,2]
[383579297,1757004458100,-480.0,0.00013698,2]
[383579298,1757004458123,-480.0,0.00013698,2]
[383579299,1757004458144,-480.0,0.00013698,2]
[383579300,1757004458165,-480.0,0.00013698,2]
[383579301,1757004458189,-480.0,0.00013698,2]
[383579302,1757004458212,-480.0,0.00013698,2]
[383579303,1757004458236,-1099.33,0.00013698,2]
[383579304,1757004458258,-480.0,0.00013698,2]
[383579305,1757004458279,-480.0,0.00013698,2]
[383579306,1757004458304,-480.0,0.00013698,2]
[383579307,1757004458325,-480.0,0.00013698,2]
[383579308,1757004458348,-490.60202883,0.00013698,2]
[383579309,1757004458371,-480.0,0.00013698,2]
[383579310,1757004458395,-480.0,0.00013698,2]
[383579311,1757004458417,-480.0,0.00013698,2]
[383579312,1757004458440,-480.0,0.00013698,2]
[383579313,1757004458462,-480.0,0.00013698,2]
[383579314,1757004458482,-480.0,0.00013698,2]
[383579315,1757004458502,-500.0,0.00013698,2]
[383579316,1757004458524,-258.64054919,0.00013773,2]
[383579317,1757004458546,-500.0,0.00013871,2]
[383579318,1757004458569,-500.0,0.00013871,2]
[383579319,1757004458595,-500.0,0.00013871,2]
[383579320,1757004458620,-500.0,0.00013871,2]
[383579321,1757004458642,-500.0,0.00013871,2]
[383579322,1757004458664,-500.0,0.00013871,2]
[383579323,1757004458688,-500.0,0.00013871,2]
[383579324,1757004458710,-270.4018705,0.00013871,2]
[383579325,1757004458732,-500.0,0.00013871,2]
[383579326,1757004458754,-151.0,0.00013872,2]
[383579327,1757004458773,-151.0,0.00013872,2]
[383579328,1757004458794,-151.0,0.00013872,2]
[383579329,1757004458817,-151.0,0.00013872,2]
[383579330,1757004458838,-151.0,0.00013872,2]
[383579331,1757004458861,-151.0,0.00013872,2]
[383579332,1757004458881,-151.0,0.00013872,2]
[383579333,1757004458903,-151.0,0.00013872,2]
[383579334,1757004458926,-167.808652,0.00013872,2]
[383579335,1757004458948,-34036.33266895,0.00013872,2]
[383579356,1757004632056,-300.0,0.00013697,2]
[383579357,1757004632067,-300.0,0.00013697,2]
[383579358,1757004632078,-580.14,0.00013698,2]
[383579359,1757004632088,-683.76,0.00013698,2]
[383579360,1757004632098,-816.86,0.00013698,2]
[383579361,1757004632108,-480.0,0.00013698,2]
[383579362,1757004632118,-480.0,0.00013698,2]
[383579363,1757004632127,-480.0,0.00013698,2]
[383579364,1757004632137,-480.0,0.00013698,2]
[383579365,1757004632146,-480.0,0.00013698,2]
[383579366,1757004632156,-480.0,0.00013698,2]
[383579367,1757004632166,-278.03427762,0.00013698,2]
[383579368,1757004632178,-210.97572238,0.00013698,2]
[383579369,1757004632189,-217.82427761,0.00013698,2]
[383579370,1757004632210,-262.17572239,0.00013698,2]
[383579371,1757004632220,-480.0,0.00013698,2]
[383579372,1757004632229,-480.0,0.00013698,2]
[383579373,1757004632239,-286.39054083,0.00013698,2]
[383579392,1757004637750,-219.69945917,0.00013698,2]
[383579393,1757004637760,-480.0,0.00013698,2]
[383579394,1757004637769,-528.37,0.00013698,2]
[383579395,1757004637779,-1.95044291,0.00013698,2]
[383579396,1757004638252,-478.04955709,0.00013698,2]
[383579397,1757004638263,-480.0,0.00013698,2]
[383579398,1757004638273,-870.25,0.00013698,2]
[383579399,1757004638282,-318.63537417,0.00013698,2]
[383579400,1757004638293,-480.0,0.00013698,2]
[383579401,1757004638303,-1663.69,0.00013698,2]
[383579402,1757004638313,-540.64514035,0.00013698,2]
[383579403,1757004638324,-480.0,0.00013698,2]
[383579404,1757004638334,-497.83,0.00013698,2]
[383579405,1757004638343,-480.0,0.00013698,2]
[383579406,1757004638353,-480.0,0.00013698,2]
[383579407,1757004638362,-480.0,0.00013698,2]
[383579408,1757004638372,-842.64,0.00013698,2]
[383579409,1757004638382,-850.73,0.00013698,2]
[383579410,1757004638392,-480.0,0.00013698,2]
[383579411,1757004638401,-652.59,0.00013698,2]
[383579412,1757004638411,-480.0,0.00013698,2]
[383579413,1757004638421,-480.0,0.00013698,2]
[383579414,1757004638431,-824.97,0.00013698,2]
[383579415,1757004638441,-480.0,0.00013698,2]
[383579416,1757004638451,-828.4,0.00013698,2]
[383579417,1757004638460,-480.0,0.00013698,2]
[383579418,1757004638470,-480.0,0.00013698,2]
[383579419,1757004638480,-1053.52,0.00013698,2]
[383579420,1757004638490,-258.64054919,0.00013773,2]
[383579421,1757004638501,-500.0,0.00013871,2]
[383579422,1757004638510,-219.28130935,0.00013871,2]
[383579423,1757004638520,-500.0,0.00013871,2]
[383579424,1757004638530,-500.0,0.00013871,2]
[383579425,1757004638540,-500.0,0.00013871,2]
[383579426,1757004638549,-500.0,0.00013871,2]
[383579427,1757004638560,-500.0,0.00013871,2]
[383579428,1757004638571,-500.0,0.00013871,2]
[383579429,1757004638580,-324.19102423,0.00013871,2]
[383579430,1757004638590,-289.85,0.00013871,2]
[383579431,1757004638601,-204.42676955,0.00013871,2]
[383579432,1757004638610,-509.20152628,0.00013871,2]
[383579433,1757004638619,-500.0,0.00013871,2]
[383579434,1757004638629,-500.0,0.00013871,2]
[383579435,1757004638639,-500.0,0.00013871,2]
[383579436,1757004638649,-219.72048993,0.00013871,2]
[383579437,1757004638658,-130756.76446307,0.00013872,2]
[383579438,1757004638672,-27720.03,0.00013872,2]
[383579439,1757004638686,-24550.22,0.00013872,2]
[383579441,1757004642269,-29432.75650296,0.00013872,2]
[383579446,1757004642537,-583.66905001,0.00013872,2]
[383579516,1757004909253,2361.7158347,0.00012911,2]
[383579524,1757005513639,250.0,0.00013554,2]
[383579525,1757005556990,395.19647968,0.0001356,2]
[383579526,1757005580487,395.19647968,0.0001356,2]
[383579527,1757005603681,225.82655981,0.0001356,2]
[383579528,1757005616198,10000.0,0.00012796,2]
[383579529,1757005626388,225.82655981,0.0001356,2]
[383579530,1757005634135,-300.0,0.00013697,2]
[383579531,1757005634157,-1200.0,0.00013697,2]
[383579532,1757005634179,-480.0,0.00013698,2]
[383579533,1757005634200,-480.0,0.00013698,2]
[383579534,1757005634221,-480.0,0.00013698,2]
[383579535,1757005634241,-480.0,0.00013698,2]
[383579536,1757005634263,-907.967779,0.00013699,2]
[383579537,1757005634283,-480.0,0.00013771,2]
[383579538,1757005634305,-480.0,0.00013771,2]
[383579539,1757005634326,-480.0,0.00013771,2]
[383579540,1757005634347,-480.0,0.00013771,2]
[383579541,1757005634369,-480.0,0.00013771,2]
[383579542,1757005634390,-480.0,0.00013771,2]
[383579543,1757005634411,-480.0,0.00013771,2]
[383579544,1757005634432,-480.0,0.00013771,2]
[383579545,1757005634453,-231.63200184,0.00013771,2]
[383579546,1757005634474,-480.0,0.00013771,2]
[383579547,1757005634494,-480.0,0.00013771,2]
[383579548,1757005634515,-480.0,0.00013771,2]
[383579549,1757005634538,-480.0,0.00013771,2]
[383579550,1757005634559,-480.0,0.00013771,2]
[383579551,1757005634581,-480.0,0.00013771,2]
[383579552,1757005634602,-480.0,0.00013771,2]
[383579553,1757005634623,-485.0,0.00013771,2]
[383579554,1757005634646,-833.99,0.00013771,2]
[383579555,1757005634667,-506.36,0.00013771,2]
[383579556,1757005634688,-480.0,0.00013771,2]
[383579557,1757005634709,-480.0,0.00013771,2]
[383579558,1757005634730,-480.0,0.00013771,2]
[383579559,1757005634750,-280.67324007,0.00013771,2]
[383579560,1757005634771,-261.01426131,0.00013771,2]
[383579561,1757005634793,-480.0,0.00013771,2]
[383579562,1757005634814,-480.0,0.00013771,2]
[383579563,1757005634834,-520.03043859,0.00013771,2]
[383579564,1757005634857,-480.0,0.00013771,2]
[383579565,1757005634878,-480.0,0.00013771,2]
[383579566,1757005634902,-815.28,0.00013771,2]
[383579567,1757005634924,-480.0,0.00013771,2]
[383579568,1757005634948,-790.6,0.00013771,2]
[383579569,1757005634972,-1594.37,0.00013771,2]
[383579570,1757005634993,-480.0,0.00013771,2]
[383579571,1757005635018,-793.88,0.00013771,2]
[383579572,1757005635039,-480.0,0.00013771,2]
[383579573,1757005635061,-480.0,0.00013771,2]
[383579574,1757005635083,-480.0,0.00013771,2]
[383579575,1757005635105,-480.0,0.00013771,2]
[383579576,1757005635126,-480.0,0.00013771,2]
[383579577,1757005635146,-480.0,0.00013771,2]
[383579578,1757005635167,-607.78,0.00013771,2]
[383579579,1757005635188,-480.0,0.00013771,2]
[383579580,1757005635212,-1009.62,0.00013771,2]
[383579581,1757005635233,-480.0,0.00013771,2]
[383579582,1757005635256,-625.4,0.00013771,2]
[383579583,1757005635277,-480.0,0.00013771,2]
[383579584,1757005635300,-500.0,0.00013771,2]
[383579585,1757005635324,-500.0,0.00013771,2]
[383579586,1757005635347,-500.0,0.00013771,2]
[383579587,1757005635370,-500.0,0.00013771,2]
[383579588,1757005635392,-500.0,0.00013771,2]
[383579589,1757005635415,-500.0,0.00013771,2]
[383579590,1757005635437,-206.84823742,0.00013771,2]
[383579591,1757005635458,-500.0,0.00013771,2]
[383579592,1757005635481,-500.0,0.00013771,2]
[383579593,1757005635504,-246.63560999,0.00013771,2]
[383579594,1757005635527,-500.0,0.00013771,2]
[383579595,1757005635553,-500.0,0.00013771,2]
[383579596,1757005635576,-450.0,0.00013771,2]
[383579597,1757005635598,-73161.79952925,0.00013772,2]
[383579638,1757005832243,-225.82655981,0.00013633,2]
[383579640,1757005832252,-119.32322191,0.00013699,2]
[383580295,1757005838988,-743.24616809,0.00013699,2]
[383580297,1757005839000,-300.0,0.00013769,2]
[383580299,1757005839012,-1200.0,0.00013769,2]
[383580302,1757005839026,-480.0,0.0001377,2]
[383580304,1757005839038,-799.24,0.0001377,2]
[383580306,1757005839051,-480.0,0.0001377,2]
[383580308,1757005839063,-480.0,0.0001377,2]
[383580310,1757005839073,-163.5151821,0.0001377,2]
[383580313,1757005839084,-757.66,0.0001377,2]
[383580315,1757005839094,-480.0,0.00013771,2]
[383580317,1757005839104,-655.27,0.00013771,2]
[383580319,1757005839115,-480.0,0.00013771,2]
[383580321,1757005839127,-480.0,0.00013771,2]
[383580324,1757005839141,-480.0,0.00013771,2]
[383580326,1757005839152,-480.0,0.00013771,2]
[383580328,1757005839164,-480.0,0.00013771,2]
[383580330,1757005839174,-480.0,0.00013771,2]
[383580332,1757005839184,-480.0,0.00013771,2]
[383580334,1757005839195,-480.0,0.00013771,2]
[383580336,1757005839207,-782.82,0.00013771,2]
[383580338,1757005839218,-480.0,0.00013771,2]
[383580341,1757005839229,-423.67988286,0.00013771,2]
[383580443,1757005840216,-56.32011714,0.00013771,2]
[383580445,1757005840228,-555.97,0.00013771,2]
[383580448,1757005840238,-480.0,0.00013771,2]
[383580450,1757005840250,-480.0,0.00013771,2]
[383580452,1757005840260,-480.0,0.00013771,2]
[383580454,1757005840270,-480.0,0.00013771,2]
[383580456,1757005840281,-480.0,0.00013771,2]
[383580459,1757005840299,-480.0,0.00013771,2]
[383580461,1757005840311,-480.0,0.00013771,2]
[383580463,1757005840322,-480.0,0.00013771,2]
[383580466,1757005840333,-480.0,0.00013771,2]
[383580468,1757005840344,-480.0,0.00013771,2]
[383580470,1757005840355,-485.26,0.00013771,2]
[383580472,1757005840366,-807.53,0.00013771,2]
[383580474,1757005840376,-480.0,0.00013771,2]
[383580476,1757005840387,-1527.94,0.00013771,2]
[383580479,1757005840398,-781.31,0.00013771,2]
[383580481,1757005840412,-480.0,0.00013771,2]
[383580483,1757005840422,-480.0,0.00013771,2]
[383580485,1757005840433,-480.0,0.00013771,2]
[383580487,1757005840444,-480.0,0.00013771,2]
[383580489,1757005840455,-5931.91443808,0.00013772,2]
[383580492,1757005840468,-131010.91977764,0.00013772,2]
[383580494,1757005840480,-13704.49545839,0.00013772,2]
[383580496,1757005840491,-480.0,0.0001387,2]
[383580499,1757005840503,-480.0,0.00013871,2]
[383580501,1757005840514,-161.0,0.00013872,2]
[383580503,1757005840525,-161.0,0.00013872,2]
[383580505,1757005840536,-156.0,0.00013872,2]
[383580508,1757005840547,-183.67875709,0.00013872,2]
[383580510,1757005840557,-156.0,0.00013872,2]
[383580512,1757005840568,-420.99152765,0.00013872,2]
[383580514,1757005840580,-327.0,0.00013872,2]
[383580517,1757005840592,-327.0,0.00013872,2]
[383580519,1757005840605,-327.0,0.00013872,2]
[383580521,1757005840616,-327.0,0.00013872,2]
[383580523,1757005840627,-300.0,0.00013971,2]
[383580525,1757005840639,-300.0,0.00013971,2]
[383580528,1757005840650,-300.0,0.00013971,2]
[383580530,1757005840661,-300.0,0.00013971,2]
[383580532,1757005840674,-300.0,0.00013971,2]
[383580534,1757005840688,-300.0,0.00013971,2]
[383580536,1757005840706,-300.0,0.00013971,2]
[383580539,1757005840716,-300.0,0.00013971,2]
[383580541,1757005840725,-300.0,0.00013971,2]
[383580543,1757005840735,-300.0,0.00013971,2]
[383580545,1757005840744,-300.0,0.00013971,2]
[383580547,1757005840753,-300.0,0.00013971,2]
[383580549,1757005840763,-300.0,0.00013971,2]
[383580551,1757005840773,-300.0,0.00013971,2]
[383580572,1757005840955,-300.0,0.00013971,2]
[383580575,1757005840977,-600.0,0.00013971,2]
[383580577,1757005840990,-270.78346903,0.00013972,2]
[383580579,1757005840999,-3000.0,0.0001404,2]
[383580581,1757005841008,-480.0,0.00014044,2]
[383580583,1757005841018,-799.24,0.00014044,2]
[383580585,1757005841027,-480.0,0.00014044,2]
[383580587,1757005841037,-480.0,0.00014044,2]
[383580590,1757005841048,-757.66,0.00014044,2]
[383580592,1757005841056,-480.0,0.00014045,2]
[383580594,1757005841066,-480.0,0.00014045,2]
[383580596,1757005841075,-480.0,0.00014045,2]
[383580598,1757005841085,-480.0,0.00014045,2]
[383580600,1757005841099,-441.33629599,0.00014045,2]
[383580602,1757005841109,-480.0,0.00014045,2]
[383580604,1757005841118,-367.82,0.00014045,2]
[383580606,1757005841127,-480.0,0.00014045,2]
[383580608,1757005841137,-480.0,0.00014045,2]
[383580610,1757005841147,-221.22119737,0.00014045,2]
[383580612,1757005841157,-793.88,0.00014045,2]
[383580614,1757005841166,-480.0,0.00014045,2]
[383580617,1757005841175,-576.01558283,0.00014045,2]
[383580619,1757005841185,-480.0,0.00014045,2]
[383580621,1757005841195,-1009.62,0.00014045,2]
[383580623,1757005841204,-480.0,0.00014045,2]
[383580625,1757005841214,-480.0,0.00014045,2]
[383580627,1757005841224,-625.4,0.00014045,2]
[383580629,1757005841234,-480.0,0.00014045,2]
[383580631,1757005841245,-480.0,0.00014045,2]
[383580633,1757005841255,-655.27,0.00014045,2]
[383580635,1757005841265,-480.0,0.00014045,2]
[383580637,1757005841275,-480.0,0.00014045,2]
[383580639,1757005841284,-480.0,0.00014045,2]
[383580641,1757005841294,-480.0,0.00014045,2]
[383580643,1757005841304,-480.0,0.00014045,2]
[383580645,1757005841314,-480.0,0.00014045,2]
[383580647,1757005841324,-480.0,0.00014045,2]
[383580649,1757005841334,-480.0,0.00014045,2]
[383580651,1757005841343,-723.97784766,0.00014045,2]
[383580748,1757005843570,-582.45,0.0001377,2]
[383580749,1757005843580,-573.28,0.00013771,2]
[383580750,1757005843590,-480.0,0.00013771,2]
[383580751,1757005843602,-582.45,0.00014044,2]
[383580752,1757005843613,-58.84215234,0.00014045,2]
[383580753,1757005843623,-480.0,0.00014045,2]
[383580754,1757005843632,-480.0,0.00014045,2]
[383580755,1757005843643,-555.97,0.00014045,2]
[383580756,1757005843652,-480.0,0.00014045,2]
[383580757,1757005843661,-480.0,0.00014045,2]
[383580758,1757005843671,-480.0,0.00014045,2]
[383580759,1757005843681,-480.0,0.00014045,2]
[383580760,1757005843690,-480.0,0.00014045,2]
[383580761,1757005843700,-480.0,0.00014045,2]
[383580762,1757005843710,-480.0,0.00014045,2]
[383580763,1757005843721,-480.0,0.00014045,2]
[383580764,1757005843730,-480.0,0.00014045,2]
[383580765,1757005843739,-480.0,0.00014045,2]
[383580766,1757005843749,-485.26,0.00014045,2]
[383580767,1757005843758,-807.53,0.00014045,2]
[383580768,1757005843768,-480.0,0.00014045,2]
[383580769,1757005843777,-1527.94,0.00014045,2]
[383580770,1757005843788,-781.31,0.00014045,2]
[383580771,1757005843799,-480.0,0.00014045,2]
[383580772,1757005843811,-480.0,0.00014045,2]
[383580773,1757005843820,-480.0,0.00014045,2]
[383580774,1757005843830,-480.0,0.00014045,2]
[383580775,1757005843839,-573.28,0.00014045,2]
[383580776,1757005843849,-480.0,0.00014045,2]
[383580777,1757005843858,-480.0,0.00014144,2]
[383580778,1757005843868,-480.0,0.00014145,2]
[383580779,1757005843879,-846.4110323,0.00014284,2]
[383580780,1757005843890,-232.93421481,0.00014284,2]
[383580781,1757005843900,-417.15472785,0.00014284,2]
[383580782,1757005843910,-160.0,0.00014284,2]
[383580783,1757005843921,-160.0,0.00014284,2]
[383580784,1757005843931,-217.5338025,0.00014284,2]
[383580785,1757005843942,-160.0,0.00014284,2]
[383580786,1757005843952,-260.41666667,0.00014284,2]
[383580787,1757005843963,-530.40833076,0.00014284,2]
[383580788,1757005843972,-160.0,0.00014284,2]
[383580789,1757005843982,-480.0,0.00014318,2]
[383580790,1757005843993,-799.24,0.00014318,2]
[383580791,1757005844003,-480.0,0.00014318,2]
[383580792,1757005844013,-480.0,0.00014318,2]
[383580793,1757005844023,-757.66,0.00014318,2]
[383580794,1757005844033,-582.45,0.00014318,2]
[383580795,1757005844043,-249.71149483,0.00014319,2]
[383580796,1757005844055,-480.0,0.00014319,2]
[383580797,1757005844066,-480.0,0.00014319,2]
[383580798,1757005844077,-480.0,0.00014319,2]
[383580799,1757005844087,-480.0,0.00014319,2]
[383580800,1757005844096,-480.0,0.00014319,2]
[383580801,1757005844106,-793.88,0.00014319,2]
[383580802,1757005844116,-621.7203659,0.00014319,2]
[383580803,1757005844127,-412.44245489,0.00014319,2]
[383580804,1757005844142,-67.55754511,0.00014319,2]
[383580805,1757005844151,-480.0,0.00014319,2]
[383580806,1757005844162,-1009.62,0.00014319,2]
[383580807,1757005844171,-480.0,0.00014319,2]
[383580808,1757005844181,-480.0,0.00014319,2]
[383580809,1757005844190,-480.0,0.00014319,2]
[383580810,1757005844200,-655.27,0.00014319,2]
[383580811,1757005844210,-480.0,0.00014319,2]
[383580812,1757005844219,-480.0,0.00014319,2]
[383580813,1757005844229,-480.0,0.00014319,2]
[383580814,1757005844238,-480.0,0.00014319,2]
[383580815,1757005844248,-480.0,0.00014319,2]
[383580816,1757005844259,-480.0,0.00014319,2]
[383580817,1757005844269,-480.0,0.00014319,2]
[383580818,1757005844279,-480.0,0.00014319,2]
[383580819,1757005844289,-782.82,0.00014319,2]
[383580820,1757005844299,-480.0,0.00014319,2]
[383580821,1757005844308,-480.0,0.00014319,2]
[383580822,1757005844318,-555.97,0.00014319,2]
[383580823,1757005844327,-480.0,0.00014319,2]
[383580824,1757005844337,-480.0,0.00014319,2]
[383580825,1757005844346,-480.0,0.00014319,2]
[383580826,1757005844356,-480.0,0.00014319,2]
[383580827,1757005844366,-480.0,0.00014319,2]
[383580828,1757005844376,-212.76462376,0.00014319,2]
[383580829,1757005844387,-164.70303716,0.00014319,2]
[383580830,1757005844397,-480.0,0.00014319,2]
[383580831,1757005844407,-480.0,0.00014319,2]
[383580832,1757005844419,-480.0,0.00014319,2]
[383580833,1757005844429,-485.26,0.00014319,2]
[383580834,1757005844439,-807.53,0.00014319,2]
[383580835,1757005844449,-480.0,0.00014319,2]
[383580836,1757005844459,-1527.94,0.00014319,2]
[383580837,1757005844468,-781.31,0.00014319,2]
[383580838,1757005844478,-480.0,0.00014319,2]
[383580839,1757005844489,-480.0,0.00014319,2]
[383580840,1757005844499,-480.0,0.00014319,2]
[383580841,1757005844509,-480.0,0.00014319,2]
[383580842,1757005844519,-573.28,0.00014319,2]
[383580843,1757005844528,-8218.82925599,0.00014321,2]
[383580844,1757005844557,-2064.61821271,0.00014321,2]
[383580845,1757005844568,-284.2353084,0.00014321,2]
[383580846,1757005844579,-480.0,0.00014418,2]
[383580847,1757005844591,-157.11629155,0.00014419,2]
[383580864,1757005846441,-480.0,0.00014319,2]
[383580865,1757005846451,-220.90795355,0.00014419,2]
[383580866,1757005846493,-101.9757549,0.00014419,2]
[383580867,1757005846504,-351.0242451,0.00014447,2]
[383580868,1757005846550,-148.9757549,0.00014447,2]
[383580869,1757005846561,-500.0,0.00014447,2]
[383580870,1757005846571,-500.0,0.00014474,2]
[383580871,1757005846582,-500.0,0.00014493,2]
[383580872,1757005846596,-500.0,0.000145,2]
[383580873,1757005846607,-500.0,0.00014528,2]
[383580874,1757005846618,-500.0,0.00014531,2]
[383580875,1757005846628,-500.0,0.00014531,2]
[383580876,1757005846638,-500.0,0.00014531,2]
[383580877,1757005846649,-388.3851953,0.00014558,2]
[383580878,1757005846659,-388.3851953,0.00014558,2]
[383580879,1757005846668,-388.3851953,0.00014558,2]
[383580880,1757005846680,-388.3851953,0.00014558,2]
[383580881,1757005846689,-211.691415,0.00014558,2]
[383580882,1757005846699,-500.0,0.00014569,2]
[383580883,1757005846709,-480.0,0.00014592,2]
[383580884,1757005846719,-799.24,0.00014592,2]
[383580885,1757005846728,-430.19059472,0.00014592,2]
[383580886,1757005846738,-480.0,0.00014592,2]
[383580887,1757005846748,-757.66,0.00014592,2]
[383580888,1757005846758,-582.45,0.00014592,2]
[383580889,1757005846768,-480.0,0.00014593,2]
[383580890,1757005846778,-480.0,0.00014593,2]
[383580891,1757005846787,-480.0,0.00014593,2]
[383580892,1757005846797,-480.0,0.00014593,2]
[383580893,1757005846808,-209.70967592,0.00014593,2]
[383580894,1757005846818,-793.88,0.00014593,2]
[383580895,1757005846827,-480.0,0.00014593,2]
[383580896,1757005846837,-1009.62,0.00014593,2]
[383580897,1757005846846,-480.0,0.00014593,2]
[383580898,1757005846857,-480.0,0.00014593,2]
[383580899,1757005846867,-480.0,0.00014593,2]
[383580900,1757005846876,-480.0,0.00014593,2]
[383580901,1757005846886,-655.27,0.00014593,2]
[383580902,1757005846896,-480.0,0.00014593,2]
[383580903,1757005846905,-480.0,0.00014593,2]
[383580904,1757005846915,-480.0,0.00014593,2]
[383580905,1757005846925,-480.0,0.00014593,2]
[383580906,1757005846934,-480.0,0.00014593,2]
[383580907,1757005846944,-480.0,0.00014593,2]
[383580908,1757005846954,-480.0,0.00014593,2]
[383580909,1757005846966,-480.0,0.00014593,2]
[383580910,1757005846976,-782.82,0.00014593,2]
[383580911,1757005846986,-480.0,0.00014593,2]
[383580912,1757005846996,-480.0,0.00014593,2]
[383580913,1757005847005,-555.97,0.00014593,2]
[383580914,1757005847016,-480.0,0.00014593,2]
[383580915,1757005847026,-480.0,0.00014593,2]
[383580916,1757005847037,-480.0,0.00014593,2]
[383580917,1757005847047,-480.0,0.00014593,2]
[383580918,1757005847058,-480.0,0.00014593,2]
[383580919,1757005847069,-480.0,0.00014593,2]
[383580920,1757005847079,-487.20362298,0.00014593,2]
[383580921,1757005847090,-480.0,0.00014593,2]
[383580922,1757005847100,-485.26,0.00014593,2]
[383580923,1757005847111,-807.53,0.00014593,2]
[383580924,1757005847123,-254.29522431,0.00014593,2]
[383580925,1757005847133,-1527.94,0.00014593,2]
[383580926,1757005847143,-781.31,0.00014593,2]
[383580927,1757005847152,-480.0,0.00014593,2]
[383580928,1757005847162,-480.0,0.00014593,2]
[383580929,1757005847172,-480.0,0.00014593,2]
[383580930,1757005847182,-335.31995004,0.00014593,2]
[383580931,1757005847192,-573.28,0.00014593,2]
[383580932,1757005847203,-480.0,0.00014593,2]
[383580933,1757005847370,-500.0,0.00014615,2]
[383580934,1757005847381,-150.0,0.00014659,2]
[383580935,1757005847390,-150.0,0.00014659,2]
[383580936,1757005847400,-150.0,0.00014659,2]